lending/lending_fUSD_20251022
["ID","MTS","AMOUNT","RATE_DAILY","PERIOD"]
[392041442,1761114698505,-1078.99,0.00032876,14]
[392041443,1761114698515,-584.27,0.00032876,14]
[392041444,1761114698524,-500.0,0.00032876,14]
[392041445,1761114698534,-500.0,0.00032876,14]
[392041446,1761114698543,-1078.99,0.00032876,14]
[392041447,1761114698552,-584.27,0.00032876,14]
[392041448,1761114698562,-159.06529252,0.00032876,14]
[392041449,1761114698571,-500.0,0.00032876,14]
[392041450,1761114698580,-1078.99,0.00032876,14]
[392041451,1761114698724,-584.27,0.00032876,14]
[392041452,1761114698737,-500.0,0.00032876,14]
[392041453,1761114698747,-517.31,0.00032876,14]
[392041454,1761114698756,-500.0,0.00032876,14]
[392041455,1761114698765,-1078.99,0.00032876,14]
[392041456,1761114698775,-584.27,0.00032876,14]
[392041457,1761114698786,-500.0,0.00032876,14]
[392041458,1761114698795,-517.31,0.00032876,14]
[392041459,1761114698805,-500.0,0.00032876,14]
[392041460,1761114698818,-1078.99,0.00032876,14]
[392041461,1761114698827,-584.30393596,0.00032876,14]
[392041462,1761114698836,-500.0,0.00032876,14]
[392041463,1761114698846,-517.31,0.00032876,14]
[392041464,1761114698855,-500.0,0.00032876,14]
[392041465,1761114698865,-500.0,0.00032876,14]
[392041466,1761114698875,-612.73336136,0.00032876,14]
[392041467,1761114698884,-517.31,0.00032876,14]
[392041468,1761114698894,-1078.99,0.00032876,14]
[392041469,1761114698904,-500.0,0.00032876,14]
[392041470,1761114698914,-1243.67,0.00032876,14]
[392041471,1761114698924,-1079.19417079,0.00032876,14]
[392041472,1761114698933,-500.0,0.00032876,14]
[392041473,1761114698943,-500.0,0.00032876,14]
[392041474,1761114698953,-1243.67,0.00032876,14]
[392041475,1761114698963,-500.0,0.00032876,14]
[392041476,1761114698972,-500.0,0.00032876,14]
[392041477,1761114698982,-1243.67,0.00032876,14]
[392041478,1761114698991,-500.0,0.00032876,14]
[392041479,1761114699001,-500.0,0.00032876,14]
[392041480,1761114699010,-1243.67,0.00032876,14]
[392041481,1761114699020,-500.0,0.00032876,14]
[392041482,1761114699033,-500.0,0.00032876,14]
[392041483,1761114699043,-1243.67,0.00032876,14]
[392041484,1761114699052,-500.0,0.00032876,14]
[392041485,1761114699062,-500.0,0.00032876,14]
[392041486,1761114699071,-713.11,0.00032876,14]
[392041487,1761114699081,-1243.67,0.00032876,14]
[392041488,1761114699091,-500.0,0.00032876,14]
[392041489,1761114699100,-500.0,0.00032876,14]
[392041490,1761114699110,-500.0,0.00032876,14]
[392041491,1761114699120,-1243.67,0.00032876,14]
[392041492,1761114699129,-500.0,0.00032876,14]
[392041493,1761114699139,-500.0,0.00032876,14]
[392041494,1761114699149,-1243.67,0.00032876,14]
[392041495,1761114699159,-500.0,0.00032876,14]
[392041496,1761114699169,-479.95884519,0.00032876,14]
[392041497,1761114699179,-713.11,0.00032876,14]
[392041498,1761114699189,-503.82672961,0.00032876,14]
[392041499,1761114699198,-1243.67,0.00032876,14]
[392041500,1761114699208,-500.0,0.00032876,14]
[392041501,1761114699217,-713.11,0.00032876,14]
[392041502,1761114699226,-500.0,0.00032876,14]
[392041503,1761114699236,-1243.67,0.00032876,14]
[392041504,1761114699246,-500.0,0.00032876,14]
[392041505,1761114699255,-713.11,0.00032876,14]
[392041506,1761114699264,-500.0,0.00032876,14]
[392041507,1761114699274,-1243.67,0.00032876,14]
[392041508,1761114699283,-538.58186375,0.00032876,14]
[392041509,1761114699292,-713.11,0.00032876,14]
[392041510,1761114699301,-500.0,0.00032876,14]
[392041511,1761114699311,-1243.67,0.00032876,14]
[392041512,1761114699320,-713.11,0.00032876,14]
[392041513,1761114699330,-500.0,0.00032876,14]
[392041514,1761114699339,-1243.67,0.00032876,14]
[392041515,1761114699348,-713.11,0.00032876,14]
[392041516,1761114699358,-500.0,0.00032876,14]
[392041517,1761114699368,-1243.67,0.00032876,14]
[392041518,1761114699377,-713.11,0.00032876,14]
[392041519,1761114699387,-500.0,0.00032876,14]
[392041520,1761114699397,-1243.67,0.00032876,14]
[392041521,1761114699407,-713.11,0.00032876,14]
[392041522,1761114699416,-500.0,0.00032876,14]
[392041523,1761114699425,-1243.67,0.00032876,14]
[392041524,1761114699436,-713.11,0.00032876,14]
[392041525,1761114699445,-500.0,0.00032876,14]
[392041526,1761114699455,-1243.67,0.00032876,14]
[392041527,1761114699464,-713.11,0.00032876,14]
[392041528,1761114699474,-500.0,0.00032876,14]
[392041529,1761114699484,-1243.67,0.00032876,14]
[392041530,1761114699494,-713.11,0.00032876,14]
[392041531,1761114699503,-500.0,0.00032876,14]
[392041532,1761114699513,-500.44437701,0.00032876,14]
[392041533,1761114699522,-517.31,0.00032876,14]
[392041534,1761114699532,-1243.67,0.00032876,14]
[392041535,1761114699541,-713.11,0.00032876,14]
[392041536,1761114699551,-500.0,0.00032876,14]
[392041537,1761114699560,-517.31,0.00032876,14]
[392041538,1761114699570,-1243.67,0.00032876,14]
[392041539,1761114699580,-713.11,0.00032876,14]
[392041540,1761114699589,-517.31,0.00032876,14]
[392041541,1761114699599,-1243.67,0.00032876,14]
[392041542,1761114699609,-713.11,0.00032876,14]
[392041543,1761114699619,-500.0,0.00032876,14]
[392041544,1761114699628,-517.31,0.00032876,14]
[392041545,1761114699637,-1243.67,0.00032876,14]
[392041546,1761114699648,-713.11,0.00032876,14]
[392041547,1761114699658,-500.0,0.00032876,14]
[392041548,1761114699667,-1243.67,0.00032876,14]
[392041549,1761114699677,-517.31,0.00032876,14]
[392041550,1761114699686,-713.11,0.00032876,14]
[392041551,1761114699696,-410.92492019,0.00032876,14]
[392041552,1761114699705,-1243.89287845,0.00032876,14]
[392041553,1761114699715,-517.31,0.00032876,14]
[392041554,1761114699725,-713.11,0.00032876,14]
[392041555,1761114699738,-517.31,0.00032876,14]
[392041556,1761114699749,-713.11,0.00032876,14]
[392041557,1761114699758,-517.31,0.00032876,14]
[392041558,1761114699768,-713.11,0.00032876,14]
[392041559,1761114699777,-517.31,0.00032876,14]
[392041560,1761114699787,-713.11,0.00032876,14]
[392041561,1761114699797,-517.31,0.00032876,14]
[392041562,1761114699806,-713.11,0.00032876,14]
[392041563,1761114699817,-517.31,0.00032876,14]
[392041564,1761114699827,-713.11,0.00032876,14]
[392041565,1761114699836,-517.31,0.00032876,14]
[392041566,1761114699846,-517.31,0.00032876,14]
[392041567,1761114699856,-713.2798318,0.00032876,14]
[392041568,1761114699866,-517.31,0.00032876,14]
[392041569,1761114699875,-517.31,0.00032876,14]
[392041570,1761114699884,-517.31,0.00032876,14]
[392041571,1761114699894,-517.31,0.00032876,14]
[392041572,1761114699904,-517.31,0.00032876,14]
[392041573,1761114699912,-517.31,0.00032876,14]
[392041574,1761114699922,-517.52701897,0.00032876,14]
[392041575,1761114699931,-1999.0,0.00032876,120]
[392041576,1761114699941,-172.86436003,0.0003288,30]
[392041577,1761114699950,-172.86436003,0.0003288,30]
[392041578,1761114699960,-172.86436003,0.0003288,30]
[392041579,1761114699969,-172.86436003,0.0003288,30]
[392041580,1761114699979,-172.86436003,0.0003288,30]
[392041581,1761114699988,-172.86,0.0003288,30]
[392041582,1761114699998,-151.25631503,0.0003288,30]
[392041583,1761114700008,-151.25631503,0.0003288,30]
[392041584,1761114700017,-151.25631503,0.0003288,30]
[392041585,1761114700027,-151.25631503,0.0003288,30]
[392041586,1761114700036,-151.25631503,0.0003288,30]
[392041587,1761114700045,-151.25631503,0.0003288,30]
[392041588,1761114700055,-151.25631503,0.0003288,30]
[392041589,1761114700064,-151.25631503,0.0003288,30]
[392041590,1761114700074,-151.25631503,0.0003288,30]
[392041591,1761114700083,-151.25631503,0.0003288,30]
[392041592,1761114700093,-151.25631503,0.0003288,30]
[392041593,1761114700102,-151.25631503,0.0003288,30]
[392041594,1761114700112,-150.20080392,0.0003288,30]
[392041595,1761114700122,-150.20080392,0.0003288,30]
[392041596,1761114700132,-150.20080392,0.0003288,30]
[392041597,1761114700141,-150.20080392,0.0003288,30]
[392041598,1761114700150,-150.20080392,0.0003288,30]
[392041599,1761114700160,-150.20080392,0.0003288,30]
[392041600,1761114700170,-150.20080392,0.0003288,30]
[392041601,1761114700180,-150.20080392,0.0003288,30]
[392041602,1761114700189,-150.20080392,0.0003288,30]
[392041603,1761114700199,-150.20080392,0.0003288,30]
[392041604,1761114700208,-150.20080392,0.0003288,30]
[392041605,1761114700217,-150.20080392,0.0003288,30]
[392041606,1761114700227,-150.20080392,0.0003288,30]
[392041607,1761114700236,-150.20080392,0.0003288,30]
[392041608,1761114700245,-150.20080392,0.0003288,30]
[392041609,1761114700255,-150.20080392,0.0003288,30]
[392041610,1761114700264,-150.20080392,0.0003288,30]
[392041611,1761114700273,-150.20080392,0.0003288,30]
[392041612,1761114700283,-150.2,0.0003288,30]
[392041613,1761114700292,-332.94511535,0.0003288,30]
[392041614,1761114700301,-332.94511535,0.0003288,30]
[392041615,1761114700311,-332.94511535,0.0003288,30]
[392041616,1761114700320,-332.94511535,0.0003288,30]
[392041617,1761114700329,-332.94511535,0.0003288,30]
[392041618,1761114700339,-332.94511535,0.0003288,30]
[392041619,1761114700347,-332.94511535,0.0003288,30]
[392041620,1761114700357,-332.94511535,0.0003288,30]
[392041621,1761114700366,-332.94511535,0.0003288,30]
[392041622,1761114700375,-332.94511535,0.0003288,30]
[392041623,1761114700384,-332.94511535,0.0003288,30]
[392041624,1761114700393,-332.94511535,0.0003288,30]
[392041625,1761114700402,-332.94511535,0.0003288,30]
[392041626,1761114700411,-332.94511535,0.0003288,30]
[392041627,1761114700420,-332.94511535,0.0003288,30]
[392041628,1761114700429,-332.94511535,0.0003288,30]
[392041629,1761114700439,-150.0,0.00032882,2]
[392041630,1761114700448,-150.0,0.00032882,2]
[392041631,1761114700458,-150.0,0.00032882,2]
[392041632,1761114700467,-150.0,0.00032882,2]
[392041633,1761114700477,-150.0,0.00032882,2]
[392041634,1761114700486,-150.0,0.00032882,2]
[392041635,1761114700496,-647.12,0.000329,30]
[392041636,1761114700505,-9149.93,0.000329,14]
[392041637,1761114700514,-647.73,0.000329,14]
[392041638,1761114700524,-4719.66,0.000329,2]
[392041639,1761114700535,-210.31298978,0.00032901,2]
[392041640,1761114700548,-151.25631503,0.00032951,30]
[392041641,1761114700558,-1000.0,0.00032955,2]
[392041642,1761114700567,-1000.0,0.00032957,2]
[392041643,1761114700577,-500.0,0.00032973,5]
[392041644,1761114700587,-500.0,0.00032973,5]
[392041645,1761114700597,-500.0,0.00032973,5]
[392041646,1761114700607,-505.75514178,0.00032973,5]
[392041647,1761114700619,-399.78762,0.00032973,5]
[392041648,1761114700628,-500.0,0.00032973,5]
[392041649,1761114700638,-500.0,0.00032973,5]
[392041650,1761114700647,-351.20154915,0.00032973,5]
[392041651,1761114700657,-500.0,0.00032973,5]
[392041652,1761114700667,-150.0,0.00032984,120]
[392041653,1761114700806,-219.09339663,0.00032985,15]
[392041654,1761114700816,-253.45165966,0.00033,2]
[392041655,1761114700825,-56618.28743221,0.00033,2]
[392041656,1761114700834,-837.17,0.00033,2]
[392041657,1761114700843,-4001.2506989,0.00033,3]
[392041658,1761114700852,-163.0,0.00033,4]
[392041659,1761114700862,-220968.81948466,0.00033,7]
[392041660,1761114700871,-558.76178347,0.00033,2]
[392041661,1761114700879,-380.46820815,0.00033,2]
[392041662,1761114700888,-1000.0,0.00033,120]
[392041663,1761114700897,-798501.85979265,0.00033,2]
[392041664,1761114700907,-9178.84709079,0.00033,120]
[392041665,1761114700916,-250.86520417,0.00033,120]
[392041666,1761114700925,-3997.64167738,0.00033,30]
[392041667,1761114700935,-94926.5758963,0.00033,2]
[392041668,1761114700945,-3457.9935878,0.00033,2]
[392041669,1761114700954,-422.45043551,0.00033003,2]
[392041670,1761114700964,-500.0,0.00033013,30]
[392041671,1761114700974,-281.28954855,0.00033068,2]
[392041672,1761114700983,-150.0,0.00033127,120]
[392041673,1761114700993,-1000.0,0.0003316,2]
[392041674,1761114701002,-296.53,0.00033165,2]
[392041675,1761114701012,-1425.0,0.00033166,2]
[392041676,1761114701021,-500.0,0.00033181,30]
[392041677,1761114701031,-150.0,0.00033203,30]
[392041678,1761114701040,-733.99079611,0.00033203,30]
[392041679,1761114701050,-150.0,0.00033203,30]
[392041680,1761114701060,-465.66368064,0.00033203,30]
[392041681,1761114701069,-150.0,0.00033203,30]
[392041682,1761114701079,-3229.25622943,0.00033203,30]
[392041683,1761114701088,-150.0,0.00033203,30]
[392041684,1761114701097,-796.41931341,0.00033203,30]
[392041685,1761114701107,-332.94511535,0.00033208,30]
[392041686,1761114701116,-1000.0,0.00033227,2]
[392041687,1761114701126,-1301.02068089,0.00033233,2]
[392041688,1761114701136,-210.31298978,0.00033234,2]
[392041689,1761114701146,-219.09339663,0.00033235,15]
[392041690,1761114701155,-1000.0,0.00033238,2]
[392041691,1761114701165,-1425.0,0.00033241,2]
[392041692,1761114701175,-1000.0,0.00033249,2]
[392041693,1761114701185,-422.45043551,0.00033249,2]
[392041694,1761114701194,-1616.94173404,0.00033281,5]
[392041695,1761114701203,-1000.0,0.00033286,2]
[392041696,1761114701213,-500.0,0.00033287,30]
[392041697,1761114701222,-177.80158063,0.00033288,30]
[392041698,1761114701231,-152.0,0.0003329,7]
[392041699,1761114701240,-313.94,0.000333,7]
[392041700,1761114701250,-313.94,0.000333,7]
[392041701,1761114701259,-313.94,0.000333,7]
[392041702,1761114701269,-509.71,0.000333,7]
[392041703,1761114701279,-509.71,0.000333,7]
[392041704,1761114701288,-509.71,0.000333,7]
[392041705,1761114701298,-169.29,0.000333,7]
[392041706,1761114701307,-169.29,0.000333,7]
[392041707,1761114701317,-169.29,0.000333,7]
[392041708,1761114701326,-207.09,0.000333,7]
[392041709,1761114701335,-207.09,0.000333,7]
[392041710,1761114701344,-207.09,0.000333,7]
[392041711,1761114701353,-207.09,0.000333,7]
[392041712,1761114701363,-656.93,0.000333,7]
[392041713,1761114701372,-218.64,0.000333,7]
[392041714,1761114701382,-1425.0,0.00033311,2]
[392041715,1761114701391,-1000.0,0.00033314,2]
[392041716,1761114701401,-119339.612803,0.00033333,2]
[392041717,1761114701411,-150.0,0.0003334,2]
[392041718,1761114701420,-1000.0,0.00033357,2]
[392041719,1761114701430,-281.28954855,0.0003336,2]
[392041720,1761114701442,-5041.80956,0.00033365,30]
[392041721,1761114701451,-151.25631503,0.00033379,30]
[392041722,1761114701461,-1425.0,0.00033396,2]
[392041723,1761114701471,-205.46,0.000334,120]
[392041724,1761114701480,-150.0,0.00033406,2]
[392041725,1761114701490,-1000.0,0.00033421,5]
[392041726,1761114701499,-503.0663356,0.00033421,2]
[392041727,1761114701509,-503.60991166,0.00033421,2]
[392041728,1761114701518,-3812.10324791,0.00033447,2]
[392041729,1761114701528,-256410.73535155,0.00033452,2]
[392041730,1761114701537,-170.69940958,0.00033455,2]
[392041731,1761114701547,-45858.56726348,0.0003346,2]
[392041732,1761114701557,-1425.0,0.00033465,2]
[392041733,1761114701567,-2217.41478841,0.0003348,2]
[392041734,1761114701577,-150.0,0.00033482,2]
[392041735,1761114701587,-1762.62639332,0.00033482,2]
[392041736,1761114701596,-219.09339663,0.00033485,15]
[392041737,1761114701606,-2217.41478841,0.00033487,2]
[392041738,1761114701616,-327.99008654,0.00033488,2]
[392041739,1761114701625,-800.0,0.0003349,7]
[392041740,1761114701636,-170.69940958,0.00033494,2]
[392041741,1761114701646,-422.45043551,0.00033496,2]
[392041742,1761114701656,-150.0,0.00033499,2]
[392041743,1761114701666,-313.94,0.000335,7]
[392041744,1761114701676,-509.71,0.000335,7]
[392041745,1761114701686,-169.29,0.000335,7]
[392041746,1761114701697,-170.7914781,0.00033506,2]
[392041747,1761114701706,-1093.11795048,0.00033506,2]
[392041748,1761114701715,-939.69363111,0.00033506,2]
[392041749,1761114701725,-1425.0,0.00033513,2]
[392041750,1761114701737,-45858.56726348,0.00033516,2]
[392041751,1761114701746,-1002.60840371,0.00033521,5]
[392041752,1761114701756,-1000.0,0.00033521,5]
[392041753,1761114701766,-1000.0,0.00033521,5]
[392041754,1761114701775,-452.79887401,0.00033521,5]
[392041755,1761114701786,-349.72738683,0.00033521,5]
[392041756,1761114701796,-1000.0,0.00033521,5]
[392041757,1761114701806,-1425.0,0.00033534,2]
[392041758,1761114701817,-150.0,0.00033541,120]
[392041759,1761114701827,-158.52050271,0.00033544,2]
[392041760,1761114701836,-919.11045164,0.00033545,2]
[392041761,1761114701845,-187.0,0.00033546,2]
[392041762,1761114701855,-150.0,0.00033546,2]
[392041763,1761114701864,-919.11045164,0.00033547,2]
[392041764,1761114701874,-1425.0,0.00033549,2]
[392041765,1761114701883,-332.94511535,0.0003355,30]
[392041766,1761114701893,-3867.25320856,0.00033553,2]
[392041767,1761114701902,-150.0,0.00033556,2]
[392041768,1761114701912,-500.0,0.00033561,30]
[392041769,1761114701921,-256410.73535155,0.00033565,2]
[392041770,1761114701931,-1000.0,0.00033567,2]
[392041771,1761114701941,-210.31298978,0.00033568,2]
[392041772,1761114701951,-1425.0,0.00033573,2]
[392041773,1761114701960,-1311.0,0.00033582,2]
[392041774,1761114701969,-817.0,0.00033582,2]
[392041775,1761114701979,-2548.0,0.00033582,2]
[392041776,1761114701989,-1064.45514559,0.00033595,20]
[392041777,1761114701999,-1008.46527322,0.00033595,20]
[392041778,1761114702009,-1092.53176077,0.00033595,20]
[392041779,1761114702018,-1055.95395501,0.00033595,20]
[392041780,1761114702028,-1060.93180858,0.00033595,20]
[392041781,1761114702041,-1086.94096668,0.00033595,20]
[392041782,1761114702051,-1039.40535402,0.00033595,20]
[392041783,1761114702061,-1001.89837255,0.00033595,20]
[392041784,1761114702071,-1368.63693733,0.00033595,20]
[392041785,1761114702081,-8600.99840151,0.00033598,2]
[392041786,1761114702092,-1425.0,0.00033599,2]
[392041787,1761114702102,-207.09,0.000336,7]
[392041788,1761114702112,-9701.52377837,0.000336,10]
[392041789,1761114702123,-1425.0,0.00033613,2]
[392041790,1761114702132,-1425.0,0.00033614,2]
[392041791,1761114702141,-170.69940958,0.00033621,2]
[392041792,1761114702152,-3867.25320856,0.00033625,2]
[392041793,1761114702162,-1762.62639332,0.00033636,2]
[392041794,1761114702172,-8600.99840151,0.00033636,2]
[392041795,1761114702181,-1289.0,0.0003364,2]
[392041796,1761114702191,-1000.0,0.00033641,2]
[392041797,1761114702201,-231.2848208,0.00033647,2]
[392041798,1761114702210,-8600.99840151,0.00033647,2]
[392041799,1761114702219,-281.28954855,0.00033651,2]
[392041800,1761114702229,-919.11045164,0.00033656,2]
[392041801,1761114702238,-3867.25320856,0.00033663,2]
[392041802,1761114702247,-256410.73535155,0.00033666,2]
[392041803,1761114702257,-45858.56726348,0.00033667,2]
[392041804,1761114702266,-3812.10324791,0.00033669,2]
[392041805,1761114702275,-1762.62639332,0.00033672,2]
[392041806,1761114702285,-2217.41478841,0.00033673,2]
[392041807,1761114702294,-3812.10324791,0.00033691,2]
[392041808,1761114702304,-1999.0,0.00033698,120]
[392041809,1761114702313,-2500.0,0.00033699,7]
[392041810,1761114702323,-1377.46767864,0.00033699,7]
[392041811,1761114702333,-9149.93,0.000337,14]
[392041812,1761114702343,-647.73,0.000337,14]
[392041813,1761114702353,-4719.66,0.000337,2]
[392041814,1761114702363,-1425.0,0.000337,2]
[392041815,1761114702372,-1425.0,0.00033706,2]
[392041816,1761114702382,-608.0,0.00033729,30]
[392041817,1761114702392,-219.09339663,0.00033735,15]
[392041818,1761114702402,-422.45043551,0.00033742,2]
[392041819,1761114702411,-1425.0,0.0003375,2]
[392041820,1761114702421,-150.0,0.00033753,120]
[392041821,1761114702431,-1425.0,0.00033757,2]
[392041822,1761114702444,-1000.0,0.00033784,2]
[392041823,1761114702454,-1000.0,0.00033794,2]
[392041824,1761114702464,-250.0038073,0.000338,2]
[392041825,1761114702473,-647.12,0.000338,30]
[392041826,1761114702482,-26489.4397131,0.000338,2]
[392041827,1761114702491,-26489.4397131,0.000338,2]
[392041828,1761114702501,-26489.4397131,0.000338,2]
[392041829,1761114702512,-711.11924549,0.00033802,2]
[392041830,1761114702522,-151.25631503,0.00033807,30]
[392041831,1761114702533,-150.0,0.00033815,2]
[392041832,1761114702544,-500.0,0.00033835,30]
[392041833,1761114702557,-150.0,0.00033853,2]
[392041834,1761114702567,-1000.0,0.00033855,2]
[392041835,1761114702577,-5351.92500433,0.00033878,2]
[392041836,1761114702588,-1425.0,0.00033883,2]
[392041837,1761114702598,-332.94511535,0.00033892,30]
[392041838,1761114702726,-1024.56234772,0.000339,30]
[392041839,1761114702739,-802.1467,0.000339,90]
[392041840,1761114702748,-9178.84709079,0.000339,120]
[392041841,1761114702758,-250.86520417,0.000339,120]
[392041842,1761114702767,-210.31298978,0.00033901,2]
[392041843,1761114702777,-100056.60463322,0.0003393,10]
[392041844,1761114702786,-1425.0,0.0003393,2]
[392041845,1761114702795,-4736.28166796,0.0003394,2]
[392041846,1761114702804,-281.28954855,0.00033943,2]
[392041847,1761114702814,-1425.0,0.00033962,2]
[392041848,1761114702823,-1000.0,0.00033972,2]
[392041849,1761114702832,-150.0,0.00033973,5]
[392041850,1761114702841,-219.09339663,0.00033985,15]
[392041851,1761114702850,-1289.0,0.00033986,2]
[392041852,1761114702860,-422.45043551,0.00033989,2]
[392041853,1761114702869,-300.0,0.00033989,66]
[392041854,1761114702878,-2500.0,0.00033996,7]
[392041855,1761114702888,-2500.0,0.00033996,7]
[392041856,1761114702897,-2500.0,0.00033996,7]
[392041857,1761114702906,-1000.0,0.00034,2]
[392041858,1761114702915,-50000.0,0.00034,15]
[392041859,1761114702925,-1080.9855771,0.00034,10]
[392041860,1761114702935,-151.0,0.00034,14]
[392041861,1761114702945,-452.962891,0.00034,30]
[392041862,1761114702954,-2331.39702996,0.00034,30]
[392041863,1761114702963,-78686.77067866,0.00034,120]
[392041864,1761114704120,-1754.0,0.00034,120]
[392041865,1761114704132,-864.24787903,0.00034,120]
[392041866,1761114704143,-1473.93976747,0.00034,120]
[392041867,1761114704195,500.0,0.00034281,120]
[392041868,1761114704247,1146.55,0.00034281,120]
[392041869,1761114704296,1323.49,0.00034281,120]
[392041870,1761114704307,-6746.96716314,0.00034,120]
[392041871,1761114704318,-544.2039824,0.00034,120]
[392041872,1761114704364,500.0,0.00034281,120]
[392041873,1761114704412,526.85281162,0.00034281,120]
[392041874,1761114704423,-1386.20851868,0.00034,120]
[392041875,1761114704470,585.15,0.00034281,120]
[392041876,1761114704517,500.0,0.00034281,120]
[392041877,1761114704564,1323.49,0.00034281,120]
[392041878,1761114704621,1146.55,0.00034281,120]
[392041879,1761114704705,500.0,0.00034281,120]
[392041880,1761114704785,585.15,0.00034281,120]
[392041881,1761114704876,500.0,0.00034281,120]
[392041882,1761114704957,1323.49,0.00034281,120]
[392041883,1761114705052,500.0,0.00034281,120]
[392041884,1761114705136,1146.55,0.00034281,120]
[392041885,1761114705215,585.15,0.00034281,120]
[392041886,1761114705299,1146.55,0.00034281,120]
[392041887,1761114705346,500.0,0.00034281,120]
[392041888,1761114705397,500.0,0.00034281,120]
[392041889,1761114705444,585.15,0.00034281,120]
[392041890,1761114705494,500.0,0.00034281,120]
[392041891,1761114705540,1323.49,0.00034281,120]
[392041892,1761114705591,585.15,0.00034281,120]
[392041893,1761114705653,500.0,0.00034281,120]
[392041894,1761114705726,500.0,0.00034281,120]
[392041895,1761114705779,500.0,0.00034281,120]
[392041896,1761114705829,1323.49,0.00034281,120]
[392041897,1761114705877,585.15,0.00034281,120]
[392041898,1761114705933,500.0,0.00034281,120]
[392041899,1761114705990,1146.55,0.00034281,120]
[392041900,1761114706049,500.0,0.00034281,120]
[392041901,1761114706102,500.0,0.00034281,120]
[392041902,1761114706158,1323.49,0.00034281,120]
[392041903,1761114706209,585.26744507,0.00034281,120]
[392041904,1761114706813,1146.55,0.00034281,120]
[392041905,1761114706863,500.0,0.00034281,120]
[392041906,1761114706912,207.49504239,0.00034281,120]
[392041907,1761114706960,1323.49,0.00034281,120]
[392041908,1761114707014,1146.55,0.00034281,120]
[392041909,1761114707061,500.0,0.00034281,120]
[392041910,1761114707108,500.0,0.00034281,120]
[392041911,1761114707157,1323.49,0.00034281,120]
[392041912,1761114707207,1146.55,0.00034281,120]
[392041913,1761114707263,500.0,0.00034281,120]
[392041914,1761114707317,500.0,0.00034281,120]
[392041915,1761114707372,1323.49,0.00034281,120]
[392041916,1761114707426,1146.55,0.00034281,120]
[392041917,1761114707477,500.0,0.00034281,120]
[392041918,1761114707529,500.0,0.00034281,120]
[392041919,1761114707584,1323.49,0.00034281,120]
[392041920,1761114707638,1146.55,0.00034281,120]
[392041921,1761114707732,1323.49,0.00034281,120]
[392041922,1761114707794,1146.55,0.00034281,120]
[392041923,1761114707843,1323.49,0.00034281,120]
[392041924,1761114707895,1146.55,0.00034281,120]
[392041925,1761114707947,1323.65015273,0.00034281,120]
[392041926,1761114708002,1146.55,0.00034281,120]
[392041927,1761114708080,1146.55,0.00034281,120]
[392041928,1761114708142,1146.55,0.00034281,120]
[392041929,1761114708199,1146.55,0.00034281,120]
[392041930,1761114708259,1146.55,0.00034281,120]
[392041931,1761114708325,1146.55,0.00034281,120]
[392041932,1761114708375,1146.55,0.00034281,120]
[392041933,1761114708425,1146.55,0.00034281,120]
[392041934,1761114708479,1146.55,0.00034281,120]
[392041935,1761114708491,-153.0,0.00023215,2]
[392041936,1761114708501,-500.0,0.00029055,2]
[392041937,1761114708511,-87.11609648,0.00029055,2]
[392041938,1761114708560,1146.55,0.00034281,120]
[392041939,1761114708572,-354.65130481,0.00029055,2]
[392041940,1761114708582,-2389.14299719,0.00030592,2]
[392041941,1761114708593,-1018.85700281,0.00030592,2]